[Event "Titled Tuesday Blitz December 06 Early 2022"]
[White "Moksh Amit Doshi"]
[Black "Osiecki, Stanislaw"]
[WhiteFideId "25064967"]
[BlackFideId "1102990"]
[WhiteElo "2297"]
[BlackElo "2088"]
[Result "1-0"]
[Round "01"]
[TimeControl "180+1"]
[Date "2022.12.07"]
[WhiteClock "0:01:15"]
[BlackClock "0:00:50"]

1. d4 {[%clk 0:02:41]}  Nf6 {[%clk 0:02:47]} 2. c4 {[%clk 0:02:36]}  g6 {[%clk 0:02:38]} 3. Nc3 {[%clk 0:02:24]}  Bg7 {[%clk 0:02:33]} 4. e4 {[%clk 0:02:05]}  d6 {[%clk 0:02:30]} 5. Nf3 {[%clk 0:01:36]}  O-O {[%clk 0:02:29]} 6. Be2 {[%clk 0:01:37]}  e5 {[%clk 0:02:28]} 7. O-O {[%clk 0:01:38]}  Nbd7 {[%clk 0:02:25]} 8. Re1 {[%clk 0:01:37]}  c6 {[%clk 0:02:24]} 9. Bf1 {[%clk 0:01:37]}  Qe7 {[%clk 0:02:24]} 10. Be3 {[%clk 0:01:31]}  Ng4 {[%clk 0:02:23]} 11. Bg5 {[%clk 0:01:31]}  f6 {[%clk 0:02:23]} 12. Bh4 {[%clk 0:01:31]}  g5 {[%clk 0:02:02]} 13. Bg3 {[%clk 0:01:31]}  Nh6 {[%clk 0:02:02]} 14. Qd2 {[%clk 0:01:28]}  Nf7 {[%clk 0:02:02]} 15. Rad1 {[%clk 0:01:27]}  h5 {[%clk 0:01:58]} 16. h3 {[%clk 0:01:28]}  h4 {[%clk 0:01:58]} 17. Bh2 {[%clk 0:01:28]}  Bh6 {[%clk 0:01:58]} 18. Qc2 {[%clk 0:01:25]}  Kg7 {[%clk 0:01:54]} 19. Ne2 {[%clk 0:01:22]}  Rd8 {[%clk 0:01:40]} 20. c5 {[%clk 0:01:19]}  dxc5 {[%clk 0:01:37]} 21. dxe5 {[%clk 0:01:19]}  fxe5 {[%clk 0:01:27]} 22. Nc1 {[%clk 0:01:19]}  Kg6 {[%clk 0:01:13]} 23. Bc4 {[%clk 0:01:18]}  Bg7 {[%clk 0:01:11]} 24. Nd3 {[%clk 0:01:17]}  Nb6 {[%clk 0:01:00]} 25. Bxf7+ {[%clk 0:01:15]}  Qxf7 {[%clk 0:00:54]} 26. Ndxe5+ {[%clk 0:01:14]}  Bxe5 {[%clk 0:00:50]} 27. Nxe5+ {[%clk 0:01:15]} 1-0


[Site "https://www.chess.com"]

[Event "Titled Tuesday Blitz December 06 Early 2022"]
[White "Molina, Roberto Junio Brito"]
[Black "Rama, Tejas"]
[WhiteFideId "2109450"]
[BlackFideId "30907381"]
[WhiteElo "2376"]
[BlackElo "2089"]
[Result "1-0"]
[Round "01"]
[TimeControl "180+1"]
[Date "2022.12.07"]
[WhiteClock "0:00:19"]
[BlackClock "0:00:07"]

1. d4 {[%clk 0:00:01]}  Nf6 {[%clk 0:02:57]} 2. e3 {[%clk 0:00:02]}  d5 {[%clk 0:02:57]} 3. Nf3 {[%clk 0:00:03]}  c5 {[%clk 0:02:57]} 4. Be2 {[%clk 0:00:03]}  Nc6 {[%clk 0:02:55]} 5. O-O {[%clk 0:00:04]}  Bg4 {[%clk 0:02:48]} 6. c3 {[%clk 0:00:04]}  e6 {[%clk 0:02:48]} 7. Ne5 {[%clk 0:00:05]}  Bxe2 {[%clk 0:02:43]} 8. Qxe2 {[%clk 0:00:05]}  Nxe5 {[%clk 0:02:39]} 9. dxe5 {[%clk 0:00:06]}  Nd7 {[%clk 0:02:39]} 10. f4 {[%clk 0:00:07]}  Be7 {[%clk 0:02:32]} 11. Nd2 {[%clk 0:00:07]}  O-O {[%clk 0:02:09]} 12. e4 {[%clk 0:00:08]}  Nb6 {[%clk 0:01:57]} 13. exd5 {[%clk 0:00:07]}  Qxd5 {[%clk 0:01:55]} 14. Ne4 {[%clk 0:00:07]}  c4 {[%clk 0:01:49]} 15. Qf3 {[%clk 0:00:08]}  Qd3 {[%clk 0:01:31]} 16. Be3 {[%clk 0:00:08]}  Nd5 {[%clk 0:01:31]} 17. Bd4 {[%clk 0:00:09]}  Qxf3 {[%clk 0:01:14]} 18. Rxf3 {[%clk 0:00:10]}  b5 {[%clk 0:01:06]} 19. g4 {[%clk 0:00:10]}  b4 {[%clk 0:00:46]} 20. f5 {[%clk 0:00:10]}  bxc3 {[%clk 0:00:41]} 21. bxc3 {[%clk 0:00:11]}  Rab8 {[%clk 0:00:40]} 22. f6 {[%clk 0:00:11]}  gxf6 {[%clk 0:00:32]} 23. exf6 {[%clk 0:00:12]}  Ba3 {[%clk 0:00:28]} 24. Bxa7 {[%clk 0:00:13]}  Rb2 {[%clk 0:00:27]} 25. Bd4 {[%clk 0:00:12]}  Ra8 {[%clk 0:00:25]} 26. Raf1 {[%clk 0:00:11]}  Bf8 {[%clk 0:00:16]} 27. R1f2 {[%clk 0:00:12]}  Raxa2 {[%clk 0:00:16]} 28. Rxb2 {[%clk 0:00:12]}  Rxb2 {[%clk 0:00:17]} 29. Rf2 {[%clk 0:00:12]}  Rb1+ {[%clk 0:00:13]} 30. Rf1 {[%clk 0:00:13]}  Rb2 {[%clk 0:00:12]} 31. Rf2 {[%clk 0:00:13]}  Rb1+ {[%clk 0:00:12]} 32. Kg2 {[%clk 0:00:14]}  Bh6 {[%clk 0:00:11]} 33. g5 {[%clk 0:00:14]}  Bf8 {[%clk 0:00:12]} 34. h4 {[%clk 0:00:15]}  h6 {[%clk 0:00:12]} 35. Kf3 {[%clk 0:00:15]}  Rh1 {[%clk 0:00:12]} 36. Kg4 {[%clk 0:00:14]}  hxg5 {[%clk 0:00:11]} 37. hxg5 {[%clk 0:00:15]}  Rg1+ {[%clk 0:00:12]} 38. Kf3 {[%clk 0:00:16]}  Rh1 {[%clk 0:00:12]} 39. Rg2 {[%clk 0:00:16]}  Rh3+ {[%clk 0:00:12]} 40. Kg4 {[%clk 0:00:16]}  Rh1 {[%clk 0:00:10]} 41. Bg1 {[%clk 0:00:17]}  Rh8 {[%clk 0:00:06]} 42. Ra2 {[%clk 0:00:15]}  Kh7 {[%clk 0:00:07]} 43. Bd4 {[%clk 0:00:16]}  Kg6 {[%clk 0:00:07]} 44. Rg2 {[%clk 0:00:16]}  Bd6 {[%clk 0:00:07]} 45. Nxd6 {[%clk 0:00:16]}  Rh1 {[%clk 0:00:07]} 46. Nxc4 {[%clk 0:00:16]}  Re1 {[%clk 0:00:07]} 47. Ne5+ {[%clk 0:00:17]}  Kh7 {[%clk 0:00:06]} 48. Kf3 {[%clk 0:00:17]}  Kg8 {[%clk 0:00:07]} 49. Kf2 {[%clk 0:00:17]}  Rc1 {[%clk 0:00:07]} 50. g6 {[%clk 0:00:18]}  Rc2+ {[%clk 0:00:08]} 51. Kf3 {[%clk 0:00:18]}  Rxg2 {[%clk 0:00:08]} 52. gxf7+ {[%clk 0:00:19]}  Kf8 {[%clk 0:00:07]} 53. Bc5+ {[%clk 0:00:19]} 1-0


[Site "https://www.chess.com"]

[Event "Titled Tuesday Blitz December 06 Early 2022"]
[White "Moroni, Luca Jr"]
[Black "Jaskolka, Tomasz"]
[WhiteFideId "865834"]
[BlackFideId "1170791"]
[WhiteElo "2573"]
[BlackElo "2126"]
[Result "1-0"]
[Round "01"]
[TimeControl "180+1"]
[Date "2022.12.07"]
[WhiteClock "0:00:30"]
[BlackClock "0:00:19"]

1. d4 {[%clk 0:02:45]}  Nf6 {[%clk 0:00:29]} 2. Bf4 {[%clk 0:02:44]}  e6 {[%clk 0:00:27]} 3. e3 {[%clk 0:02:44]}  d5 {[%clk 0:00:27]} 4. Nf3 {[%clk 0:02:44]}  Bd6 {[%clk 0:00:27]} 5. Nbd2 {[%clk 0:02:44]}  Bxf4 {[%clk 0:00:26]} 6. exf4 {[%clk 0:02:45]}  c6 {[%clk 0:00:26]} 7. Bd3 {[%clk 0:02:45]}  Nbd7 {[%clk 0:00:25]} 8. Qe2 {[%clk 0:02:44]}  Qc7 {[%clk 0:00:25]} 9. Ne5 {[%clk 0:02:44]}  b6 {[%clk 0:00:26]} 10. c3 {[%clk 0:02:42]}  Bb7 {[%clk 0:00:26]} 11. g4 {[%clk 0:02:37]}  g6 {[%clk 0:00:26]} 12. f5 {[%clk 0:02:26]}  Nxe5 {[%clk 0:00:15]} 13. dxe5 {[%clk 0:02:25]}  Nd7 {[%clk 0:00:15]} 14. f4 {[%clk 0:02:22]}  O-O-O {[%clk 0:00:15]} 15. O-O-O {[%clk 0:02:20]}  Nc5 {[%clk 0:00:15]} 16. Bc2 {[%clk 0:02:10]}  Ba6 {[%clk 0:00:15]} 17. Qe3 {[%clk 0:02:09]}  Kb8 {[%clk 0:00:16]} 18. Nf3 {[%clk 0:02:08]}  gxf5 {[%clk 0:00:15]} 19. gxf5 {[%clk 0:02:07]}  Rhg8 {[%clk 0:00:16]} 20. Rhg1 {[%clk 0:02:05]}  Ne4 {[%clk 0:00:10]} 21. Rxg8 {[%clk 0:01:43]}  Rxg8 {[%clk 0:00:11]} 22. fxe6 {[%clk 0:01:32]}  fxe6 {[%clk 0:00:12]} 23. Bxe4 {[%clk 0:01:32]}  dxe4 {[%clk 0:00:13]} 24. Qxe4 {[%clk 0:01:33]}  c5 {[%clk 0:00:13]} 25. Ng5 {[%clk 0:01:30]}  Bb7 {[%clk 0:00:13]} 26. Qxh7 {[%clk 0:01:26]}  Qxh7 {[%clk 0:00:09]} 27. Nxh7 {[%clk 0:01:27]}  Rh8 {[%clk 0:00:09]} 28. Ng5 {[%clk 0:01:27]}  Rxh2 {[%clk 0:00:10]} 29. Rd8+ {[%clk 0:01:13]}  Kc7 {[%clk 0:00:10]} 30. Nxe6+ {[%clk 0:01:12]}  Kc6 {[%clk 0:00:11]} 31. c4 {[%clk 0:01:10]}  Ba6 {[%clk 0:00:07]} 32. Rd6+ {[%clk 0:01:05]}  Kb7 {[%clk 0:00:07]} 33. b3 {[%clk 0:01:04]}  Rf2 {[%clk 0:00:06]} 34. a4 {[%clk 0:01:03]}  Kb8 {[%clk 0:00:06]} 35. Nxc5 {[%clk 0:00:51]}  Bc8 {[%clk 0:00:06]} 36. Nd3 {[%clk 0:00:51]}  Rf3 {[%clk 0:00:05]} 37. e6 {[%clk 0:00:26]}  Bxe6 {[%clk 0:00:05]} 38. Rxe6 {[%clk 0:00:27]}  Rxd3 {[%clk 0:00:06]} 39. Kc2 {[%clk 0:00:27]}  Rf3 {[%clk 0:00:07]} 40. Rf6 {[%clk 0:00:27]}  Kc7 {[%clk 0:00:07]} 41. Rf7+ {[%clk 0:00:27]}  Kc6 {[%clk 0:00:07]} 42. Rxa7 {[%clk 0:00:26]}  Rxf4 {[%clk 0:00:07]} 43. Rh7 {[%clk 0:00:27]}  Kc5 {[%clk 0:00:07]} 44. Rh5+ {[%clk 0:00:26]}  Kc6 {[%clk 0:00:08]} 45. Kc3 {[%clk 0:00:26]}  Rg4 {[%clk 0:00:08]} 46. Rh6+ {[%clk 0:00:25]}  Kb7 {[%clk 0:00:08]} 47. Rh5 {[%clk 0:00:24]}  Rg6 {[%clk 0:00:07]} 48. Kb4 {[%clk 0:00:24]}  Kc6 {[%clk 0:00:07]} 49. a5 {[%clk 0:00:24]}  bxa5+ {[%clk 0:00:08]} 50. Rxa5 {[%clk 0:00:25]}  Rg1 {[%clk 0:00:08]} 51. Ra6+ {[%clk 0:00:25]}  Kb7 {[%clk 0:00:08]} 52. Rh6 {[%clk 0:00:25]}  Rg5 {[%clk 0:00:08]} 53. c5 {[%clk 0:00:25]}  Kc7 {[%clk 0:00:08]} 54. Kb5 {[%clk 0:00:26]}  Kb7 {[%clk 0:00:09]} 55. b4 {[%clk 0:00:26]}  Ka7 {[%clk 0:00:10]} 56. Rh7+ {[%clk 0:00:26]}  Ka8 {[%clk 0:00:10]} 57. Kb6 {[%clk 0:00:26]}  Rg6+ {[%clk 0:00:11]} 58. c6 {[%clk 0:00:26]}  Rg8 {[%clk 0:00:11]} 59. Ra7+ {[%clk 0:00:26]}  Kb8 {[%clk 0:00:11]} 60. c7+ {[%clk 0:00:27]}  Kc8 {[%clk 0:00:12]} 61. Ra8+ {[%clk 0:00:28]}  Kd7 {[%clk 0:00:13]} 62. Rxg8 {[%clk 0:00:29]}  Ke7 {[%clk 0:00:13]} 63. c8=Q {[%clk 0:00:29]}  Kf7 {[%clk 0:00:14]} 64. Qe8+ {[%clk 0:00:28]}  Kf6 {[%clk 0:00:15]} 65. Rg6+ {[%clk 0:00:28]}  Kf5 {[%clk 0:00:16]} 66. Qe6+ {[%clk 0:00:28]}  Kf4 {[%clk 0:00:17]} 67. Rg4+ {[%clk 0:00:29]}  Kf3 {[%clk 0:00:18]} 68. Qe4+ {[%clk 0:00:29]}  Kf2 {[%clk 0:00:18]} 69. Rg2+ {[%clk 0:00:30]}  Kf1 {[%clk 0:00:19]} 70. Qe2# {[%clk 0:00:30]} 1-0


[Site "https://www.chess.com"]

[Event "Titled Tuesday Blitz December 06 Early 2022"]
[White "Moskvin, Anatoly"]
[Black "Wojtaszek, Radoslaw"]
[WhiteFideId "24199990"]
[BlackFideId "1118358"]
[WhiteElo "2104"]
[BlackElo "2605"]
[Result "1-0"]
[Round "01"]
[TimeControl "180+1"]
[Date "2022.12.07"]
[WhiteClock "0:00:54"]
[BlackClock "0:00:17"]

1. e4 {[%clk 0:02:54]}  c6 {[%clk 0:02:43]} 2. c4 {[%clk 0:02:44]}  d5 {[%clk 0:01:32]} 3. exd5 {[%clk 0:02:45]}  cxd5 {[%clk 0:01:32]} 4. cxd5 {[%clk 0:02:46]}  Nf6 {[%clk 0:01:32]} 5. Nc3 {[%clk 0:02:47]}  Nxd5 {[%clk 0:01:30]} 6. Nf3 {[%clk 0:02:47]}  Nxc3 {[%clk 0:01:29]} 7. dxc3 {[%clk 0:02:46]}  Qxd1+ {[%clk 0:01:28]} 8. Kxd1 {[%clk 0:02:47]}  Nc6 {[%clk 0:01:28]} 9. Bd3 {[%clk 0:02:47]}  Bg4 {[%clk 0:01:27]} 10. Kc2 {[%clk 0:02:48]}  O-O-O {[%clk 0:01:22]} 11. Be3 {[%clk 0:02:46]}  Bxf3 {[%clk 0:01:18]} 12. gxf3 {[%clk 0:02:46]}  e6 {[%clk 0:01:18]} 13. b4 {[%clk 0:02:44]}  Be7 {[%clk 0:01:15]} 14. a4 {[%clk 0:02:44]}  Bxb4 {[%clk 0:01:06]} 15. Be4 {[%clk 0:02:22]}  Ba5 {[%clk 0:00:59]} 16. Bxc6 {[%clk 0:02:22]}  bxc6 {[%clk 0:01:00]} 17. Bxa7 {[%clk 0:02:23]}  Rd5 {[%clk 0:00:58]} 18. Rab1 {[%clk 0:02:15]}  Kc7 {[%clk 0:00:54]} 19. Bd4 {[%clk 0:02:13]}  e5 {[%clk 0:00:54]} 20. Be3 {[%clk 0:02:13]}  f5 {[%clk 0:00:53]} 21. f4 {[%clk 0:02:12]}  g5 {[%clk 0:00:51]} 22. fxg5 {[%clk 0:02:07]}  f4 {[%clk 0:00:51]} 23. Bc1 {[%clk 0:02:05]}  Rhd8 {[%clk 0:00:50]} 24. h4 {[%clk 0:02:00]}  Rd3 {[%clk 0:00:50]} 25. Rb3 {[%clk 0:01:59]}  Rf3 {[%clk 0:00:50]} 26. Rh2 {[%clk 0:01:57]}  Rdd3 {[%clk 0:00:49]} 27. Bd2 {[%clk 0:01:45]}  Rh3 {[%clk 0:00:44]} 28. Rxh3 {[%clk 0:01:45]}  Rxh3 {[%clk 0:00:45]} 29. c4 {[%clk 0:01:46]}  Rh2 {[%clk 0:00:25]} 30. Bxa5+ {[%clk 0:01:45]}  Kd6 {[%clk 0:00:26]} 31. Rf3 {[%clk 0:01:35]}  Rxh4 {[%clk 0:00:24]} 32. Bb4+ {[%clk 0:01:34]}  c5 {[%clk 0:00:24]} 33. Rd3+ {[%clk 0:01:31]}  Kc6 {[%clk 0:00:22]} 34. Ba3 {[%clk 0:01:29]}  e4 {[%clk 0:00:22]} 35. Rd5 {[%clk 0:01:29]}  Rh2 {[%clk 0:00:22]} 36. Bxc5 {[%clk 0:01:24]}  e3 {[%clk 0:00:22]} 37. Kd3 {[%clk 0:00:57]}  Rxf2 {[%clk 0:00:21]} 38. Bb4 {[%clk 0:00:58]}  Rh2 {[%clk 0:00:18]} 39. a5 {[%clk 0:00:56]}  e2 {[%clk 0:00:18]} 40. Rf5 {[%clk 0:00:55]}  Rf2 {[%clk 0:00:17]} 41. Be1 {[%clk 0:00:54]}  Rf1 {[%clk 0:00:17]} 42. Kxe2 {[%clk 0:00:54]} 1-0


[Site "https://www.chess.com"]

[Event "Titled Tuesday Blitz December 06 Early 2022"]
[White "Mrudul Dehankar"]
[Black "Oro, Faustino"]
[WhiteFideId "25096990"]
[BlackFideId "20000197"]
[WhiteElo "2139"]
[BlackElo "1984"]
[Result "0-1"]
[Round "01"]
[TimeControl "180+1"]
[Date "2022.12.07"]
[WhiteClock "0:00:01"]
[BlackClock "0:00:34"]

1. e4 {[%clk 0:00:30]}  c5 {[%clk 0:02:58]} 2. Nf3 {[%clk 0:00:30]}  d6 {[%clk 0:02:57]} 3. d4 {[%clk 0:00:30]}  cxd4 {[%clk 0:02:58]} 4. Nxd4 {[%clk 0:00:30]}  Nf6 {[%clk 0:02:58]} 5. Nc3 {[%clk 0:00:30]}  a6 {[%clk 0:02:58]} 6. Bg5 {[%clk 0:00:31]}  e6 {[%clk 0:02:58]} 7. f4 {[%clk 0:00:31]}  h6 {[%clk 0:02:58]} 8. Bh4 {[%clk 0:00:31]}  Qb6 {[%clk 0:02:58]} 9. a3 {[%clk 0:00:28]}  Be7 {[%clk 0:02:55]} 10. Bf2 {[%clk 0:00:28]}  Qc7 {[%clk 0:02:55]} 11. Qf3 {[%clk 0:00:28]}  b5 {[%clk 0:02:53]} 12. O-O-O {[%clk 0:00:28]}  Bb7 {[%clk 0:02:53]} 13. g4 {[%clk 0:00:28]}  Nbd7 {[%clk 0:02:45]} 14. Bg2 {[%clk 0:00:21]}  Nc5 {[%clk 0:02:40]} 15. Qe2 {[%clk 0:00:19]}  Rc8 {[%clk 0:02:23]} 16. Kb1 {[%clk 0:00:13]}  Nfd7 {[%clk 0:02:15]} 17. h4 {[%clk 0:00:12]}  Nb6 {[%clk 0:02:12]} 18. f5 {[%clk 0:00:12]}  Nc4 {[%clk 0:01:57]} 19. Nxe6 {[%clk 0:00:12]}  fxe6 {[%clk 0:01:55]} 20. g5 {[%clk 0:00:06]}  h5 {[%clk 0:01:15]} 21. Bf3 {[%clk 0:00:06]}  Qa5 {[%clk 0:01:08]} 22. f6 {[%clk 0:00:02]}  gxf6 {[%clk 0:01:05]} 23. Kc1 {[%clk 0:00:03]}  Nxa3 {[%clk 0:00:58]} 24. Bxh5+ {[%clk 0:00:03]}  Kd8 {[%clk 0:00:57]} 25. gxf6 {[%clk 0:00:04]}  Bxf6 {[%clk 0:00:57]} 26. Rxd6+ {[%clk 0:00:03]}  Ke7 {[%clk 0:00:57]} 27. Bxc5 {[%clk 0:00:03]}  Rxc5 {[%clk 0:00:57]} 28. Rhd1 {[%clk 0:00:04]}  Bc8 {[%clk 0:00:42]} 29. Qg4 {[%clk 0:00:02]}  Rcxh5 {[%clk 0:00:38]} 30. Qg6 {[%clk 0:00:01]}  R5h6 {[%clk 0:00:34]} 0-1


[Site "https://www.chess.com"]

[Event "Titled Tuesday Blitz December 06 Early 2022"]
[White "Nambiar, Vivek"]
[Black "Postnikov, Artem"]
[WhiteFideId "5005329"]
[BlackFideId "34153575"]
[WhiteElo "2119"]
[BlackElo "2243"]
[Result "0-1"]
[Round "01"]
[TimeControl "180+1"]
[Date "2022.12.07"]
[WhiteClock "0:00:03"]
[BlackClock "0:00:24"]

1. Nf3 {[%clk 0:02:13]}  Nf6 {[%clk 0:02:35]} 2. c4 {[%clk 0:01:54]}  e6 {[%clk 0:02:34]} 3. Nc3 {[%clk 0:01:52]}  d5 {[%clk 0:02:34]} 4. e3 {[%clk 0:01:43]}  a6 {[%clk 0:02:29]} 5. d4 {[%clk 0:01:41]}  dxc4 {[%clk 0:02:29]} 6. Bxc4 {[%clk 0:01:40]}  b5 {[%clk 0:02:30]} 7. Bb3 {[%clk 0:01:40]}  Bb7 {[%clk 0:02:30]} 8. O-O {[%clk 0:01:36]}  Nbd7 {[%clk 0:02:31]} 9. Qe2 {[%clk 0:01:34]}  c5 {[%clk 0:02:31]} 10. Rd1 {[%clk 0:01:33]}  cxd4 {[%clk 0:02:07]} 11. exd4 {[%clk 0:01:25]}  b4 {[%clk 0:01:45]} 12. Na4 {[%clk 0:01:18]}  Be7 {[%clk 0:01:45]} 13. Nc5 {[%clk 0:00:58]}  Bd5 {[%clk 0:01:31]} 14. Nxd7 {[%clk 0:00:53]}  Qxd7 {[%clk 0:01:28]} 15. Ne5 {[%clk 0:00:52]}  Qb7 {[%clk 0:01:28]} 16. Bxd5 {[%clk 0:00:49]}  Qxd5 {[%clk 0:01:29]} 17. Bg5 {[%clk 0:00:47]}  O-O {[%clk 0:01:27]} 18. Rac1 {[%clk 0:00:45]}  h6 {[%clk 0:01:22]} 19. Bh4 {[%clk 0:00:42]}  Qb5 {[%clk 0:00:42]} 20. Qxb5 {[%clk 0:00:30]}  axb5 {[%clk 0:00:43]} 21. Bxf6 {[%clk 0:00:25]}  Bxf6 {[%clk 0:00:42]} 22. Nd7 {[%clk 0:00:25]}  Rfd8 {[%clk 0:00:43]} 23. Nxf6+ {[%clk 0:00:25]}  gxf6 {[%clk 0:00:43]} 24. Rc5 {[%clk 0:00:16]}  Rxa2 {[%clk 0:00:43]} 25. Rxb5 {[%clk 0:00:16]}  Rxb2 {[%clk 0:00:44]} 26. g3 {[%clk 0:00:15]}  f5 {[%clk 0:00:40]} 27. d5 {[%clk 0:00:14]}  b3 {[%clk 0:00:34]} 28. d6 {[%clk 0:00:14]}  Rd7 {[%clk 0:00:32]} 29. Rc5 {[%clk 0:00:14]}  Rc2 {[%clk 0:00:32]} 30. Rxc2 {[%clk 0:00:13]}  bxc2 {[%clk 0:00:33]} 31. Rc1 {[%clk 0:00:13]}  Rxd6 {[%clk 0:00:33]} 32. Rxc2 {[%clk 0:00:14]}  Kg7 {[%clk 0:00:34]} 33. f4 {[%clk 0:00:14]}  h5 {[%clk 0:00:33]} 34. Kg2 {[%clk 0:00:14]}  Kg6 {[%clk 0:00:31]} 35. h4 {[%clk 0:00:13]}  Rd3 {[%clk 0:00:30]} 36. Re2 {[%clk 0:00:13]}  Ra3 {[%clk 0:00:28]} 37. Kf2 {[%clk 0:00:14]}  Ra4 {[%clk 0:00:28]} 38. Kg2 {[%clk 0:00:14]}  Ra6 {[%clk 0:00:25]} 39. Kf2 {[%clk 0:00:14]}  Kf6 {[%clk 0:00:25]} 40. Rb2 {[%clk 0:00:13]}  Rc6 {[%clk 0:00:23]} 41. Rd2 {[%clk 0:00:13]}  Ke7 {[%clk 0:00:22]} 42. Kg2 {[%clk 0:00:13]}  Rd6 {[%clk 0:00:22]} 43. Rc2 {[%clk 0:00:12]}  Rd3 {[%clk 0:00:22]} 44. Kf2 {[%clk 0:00:12]}  Kd7 {[%clk 0:00:21]} 45. Rb2 {[%clk 0:00:12]}  Kc6 {[%clk 0:00:20]} 46. Ra2 {[%clk 0:00:11]}  Kd5 {[%clk 0:00:20]} 47. Ra7 {[%clk 0:00:11]}  Ke4 {[%clk 0:00:20]} 48. Rxf7 {[%clk 0:00:10]}  Rd2+ {[%clk 0:00:20]} 49. Ke1 {[%clk 0:00:08]}  Rg2 {[%clk 0:00:20]} 50. Re7 {[%clk 0:00:08]}  Rxg3 {[%clk 0:00:21]} 51. Rxe6+ {[%clk 0:00:08]}  Kxf4 {[%clk 0:00:21]} 52. Rh6 {[%clk 0:00:08]}  Kg4 {[%clk 0:00:21]} 53. Rg6+ {[%clk 0:00:07]}  Kxh4 {[%clk 0:00:22]} 54. Rf6 {[%clk 0:00:08]}  Kg5 {[%clk 0:00:22]} 55. Rf8 {[%clk 0:00:07]}  h4 {[%clk 0:00:22]} 56. Kf2 {[%clk 0:00:07]}  Ra3 {[%clk 0:00:22]} 57. Rg8+ {[%clk 0:00:07]}  Kf4 {[%clk 0:00:23]} 58. Rh8 {[%clk 0:00:07]}  Ra2+ {[%clk 0:00:23]} 59. Kg1 {[%clk 0:00:07]}  Kg3 {[%clk 0:00:23]} 60. Rg8+ {[%clk 0:00:06]}  Kh3 {[%clk 0:00:24]} 61. Rf8 {[%clk 0:00:06]}  Kg4 {[%clk 0:00:24]} 62. Rg8+ {[%clk 0:00:06]}  Kf3 {[%clk 0:00:24]} 63. Rh8 {[%clk 0:00:06]}  Ra4 {[%clk 0:00:24]} 64. Rh7 {[%clk 0:00:05]}  Rg4+ {[%clk 0:00:23]} 65. Kf1 {[%clk 0:00:05]}  f4 {[%clk 0:00:23]} 66. Rh8 {[%clk 0:00:04]}  Kg3 {[%clk 0:00:23]} 67. Rh7 {[%clk 0:00:04]}  h3 {[%clk 0:00:24]} 68. Rh8 {[%clk 0:00:03]}  h2 {[%clk 0:00:24]} 69. Rh7 {[%clk 0:00:03]}  Rh4 {[%clk 0:00:24]} 70. Rg7+ {[%clk 0:00:03]}  Kf3 {[%clk 0:00:24]} 0-1


[Site "https://www.chess.com"]

[Event "Titled Tuesday Blitz December 06 Early 2022"]
[White "Nugumanov, Bakhtiyar"]
[Black "Agasarov, Benik"]
[WhiteFideId "13701797"]
[BlackFideId "13314823"]
[WhiteElo "2287"]
[BlackElo "2179"]
[Result "0-1"]
[Round "01"]
[TimeControl "180+1"]
[Date "2022.12.07"]
[WhiteClock "0:00:06"]
[BlackClock "0:00:34"]

1. e4 {[%clk 0:02:34]}  e5 {[%clk 0:02:33]} 2. Nf3 {[%clk 0:02:29]}  Nf6 {[%clk 0:02:33]} 3. Nc3 {[%clk 0:02:24]}  Nc6 {[%clk 0:02:32]} 4. d4 {[%clk 0:02:14]}  Bb4 {[%clk 0:02:20]} 5. d5 {[%clk 0:01:58]}  Ne7 {[%clk 0:02:14]} 6. Bd3 {[%clk 0:01:57]}  Bxc3+ {[%clk 0:02:13]} 7. bxc3 {[%clk 0:01:57]}  d6 {[%clk 0:02:14]} 8. Bg5 {[%clk 0:01:55]}  Ng6 {[%clk 0:02:10]} 9. O-O {[%clk 0:01:48]}  h6 {[%clk 0:02:10]} 10. Be3 {[%clk 0:01:48]}  O-O {[%clk 0:02:09]} 11. Rb1 {[%clk 0:01:32]}  b6 {[%clk 0:02:08]} 12. h3 {[%clk 0:01:28]}  a5 {[%clk 0:02:00]} 13. Qe2 {[%clk 0:01:25]}  Nh5 {[%clk 0:01:50]} 14. Kh2 {[%clk 0:01:01]}  Nhf4 {[%clk 0:01:47]} 15. Qd2 {[%clk 0:00:59]}  Qf6 {[%clk 0:01:45]} 16. Ng1 {[%clk 0:00:49]}  Kh7 {[%clk 0:01:18]} 17. g3 {[%clk 0:00:48]}  Nxd3 {[%clk 0:01:15]} 18. cxd3 {[%clk 0:00:49]}  Qe7 {[%clk 0:01:11]} 19. f4 {[%clk 0:00:48]}  exf4 {[%clk 0:01:12]} 20. Bxf4 {[%clk 0:00:27]}  f5 {[%clk 0:01:06]} 21. Rbe1 {[%clk 0:00:26]}  fxe4 {[%clk 0:01:05]} 22. Rxe4 {[%clk 0:00:25]}  Qf7 {[%clk 0:01:03]} 23. Nf3 {[%clk 0:00:16]}  Qxd5 {[%clk 0:00:58]} 24. c4 {[%clk 0:00:14]}  Qg8 {[%clk 0:00:56]} 25. Nd4 {[%clk 0:00:13]}  Bb7 {[%clk 0:00:54]} 26. Re2 {[%clk 0:00:13]}  Rae8 {[%clk 0:00:53]} 27. Ref2 {[%clk 0:00:12]}  Rf7 {[%clk 0:00:47]} 28. Nb5 {[%clk 0:00:12]}  Bc6 {[%clk 0:00:43]} 29. Nd4 {[%clk 0:00:12]}  Bd7 {[%clk 0:00:44]} 30. h4 {[%clk 0:00:11]}  Ref8 {[%clk 0:00:42]} 31. h5 {[%clk 0:00:10]}  Nxf4 {[%clk 0:00:40]} 32. Rxf4 {[%clk 0:00:11]}  g6 {[%clk 0:00:36]} 33. hxg6+ {[%clk 0:00:09]}  Qxg6 {[%clk 0:00:36]} 34. Qf2 {[%clk 0:00:05]}  Rxf4 {[%clk 0:00:34]} 35. gxf4 {[%clk 0:00:06]}  Qh5+ {[%clk 0:00:34]} 0-1


[Site "https://www.chess.com"]

[Event "Titled Tuesday Blitz December 06 Early 2022"]
[White "Olenik Campa, Rudi"]
[Black "Yilmaz, Mustafa"]
[WhiteFideId "14633264"]
[BlackFideId "6302718"]
[WhiteElo "2131"]
[BlackElo "2564"]
[Result "0-1"]
[Round "01"]
[TimeControl "180+1"]
[Date "2022.12.06"]
[WhiteClock "0:00:10"]
[BlackClock "0:01:59"]

1. e4 {[%clk 0:02:50]}  c5 {[%clk 0:02:48]} 2. Nf3 {[%clk 0:01:30]}  e6 {[%clk 0:02:43]} 3. c4 {[%clk 0:01:29]}  Nc6 {[%clk 0:02:42]} 4. Nc3 {[%clk 0:01:30]}  Nd4 {[%clk 0:02:41]} 5. Bd3 {[%clk 0:01:26]}  Ne7 {[%clk 0:02:40]} 6. Nxd4 {[%clk 0:01:25]}  cxd4 {[%clk 0:02:40]} 7. Ne2 {[%clk 0:01:26]}  e5 {[%clk 0:02:40]} 8. O-O {[%clk 0:01:26]}  d6 {[%clk 0:02:38]} 9. f4 {[%clk 0:00:31]}  Nc6 {[%clk 0:02:38]} 10. Bb1 {[%clk 0:00:30]}  h5 {[%clk 0:02:27]} 11. d3 {[%clk 0:00:30]}  h4 {[%clk 0:02:27]} 12. a3 {[%clk 0:00:29]}  h3 {[%clk 0:02:26]} 13. g3 {[%clk 0:00:29]}  a5 {[%clk 0:02:25]} 14. Bd2 {[%clk 0:00:29]}  Bg4 {[%clk 0:02:23]} 15. Bc2 {[%clk 0:00:28]}  Be7 {[%clk 0:02:22]} 16. Rf2 {[%clk 0:00:21]}  O-O {[%clk 0:02:22]} 17. b4 {[%clk 0:00:22]}  axb4 {[%clk 0:02:20]} 18. axb4 {[%clk 0:00:22]}  Rxa1 {[%clk 0:02:20]} 19. Qxa1 {[%clk 0:00:23]}  Qa8 {[%clk 0:02:20]} 20. Qb2 {[%clk 0:00:22]}  Qa7 {[%clk 0:02:21]} 21. b5 {[%clk 0:00:21]}  Nd8 {[%clk 0:02:15]} 22. Bb4 {[%clk 0:00:21]}  b6 {[%clk 0:02:10]} 23. Nc1 {[%clk 0:00:20]}  Ne6 {[%clk 0:02:08]} 24. fxe5 {[%clk 0:00:19]}  dxe5 {[%clk 0:02:08]} 25. Bxe7 {[%clk 0:00:18]}  Qxe7 {[%clk 0:02:09]} 26. Nb3 {[%clk 0:00:17]}  Qb4 {[%clk 0:02:07]} 27. Rf1 {[%clk 0:00:15]}  Ra8 {[%clk 0:02:07]} 28. Qb1 {[%clk 0:00:13]}  Qc3 {[%clk 0:02:04]} 29. Nc1 {[%clk 0:00:13]}  Ra1 {[%clk 0:01:58]} 30. Qb3 {[%clk 0:00:12]}  Qd2 {[%clk 0:01:59]} 31. c5 {[%clk 0:00:10]}  Qg2# {[%clk 0:01:59]} 0-1


[Site "https://www.chess.com"]